fUST/lending_fUST_20250628
["ID","MTS","AMOUNT","RATE_DAILY","PERIOD"]
[368208685,1751059843074,-460.0,0.00019452,2]
[368208687,1751059843083,-460.0,0.00019452,2]
[368208689,1751059843093,-460.0,0.00019452,2]
[368208691,1751059843102,-460.0,0.00019452,2]
[368208693,1751059843112,-460.0,0.00019452,2]
[368208695,1751059843121,-460.0,0.00019452,2]
[368208697,1751059843130,-460.0,0.00019452,2]
[368208699,1751059843139,-460.0,0.00019452,2]
[368208701,1751059843150,-460.0,0.00019452,2]
[368208703,1751059843159,-460.0,0.00019452,2]
[368208705,1751059843170,-460.0,0.00019452,2]
[368208707,1751059843183,-460.0,0.00019452,2]
[368208709,1751059843192,-460.0,0.00019452,2]
[368208711,1751059843201,-480.43,0.00019452,2]
[368208713,1751059843211,-460.0,0.00019452,2]
[368208715,1751059843220,-460.0,0.00019452,2]
[368208717,1751059843230,-460.0,0.00019452,2]
[368208719,1751059843240,-460.0,0.00019452,2]
[368208721,1751059843249,-736.02,0.00019452,2]
[368208723,1751059843259,-500.0,0.00019452,2]
[368208725,1751059843268,-438.63062073,0.00019452,2]
[368208727,1751059843277,-460.0,0.00019452,2]
[368208729,1751059843286,-472.10241533,0.00019452,2]
[368208731,1751059843295,-535.79,0.00019452,2]
[368208733,1751059843304,-460.0,0.00019452,2]
[368208735,1751059843313,-460.0,0.00019452,2]
[368208737,1751059843321,-460.0,0.00019452,2]
[368208739,1751059843330,-150.00000012,0.00019452,2]
[368208741,1751059843339,-1843.63,0.00019452,2]
[368208743,1751059843348,-460.0,0.00019452,2]
[368208745,1751059843357,-554.34,0.00019452,2]
[368208747,1751059843366,-632.84,0.00019452,2]
[368208749,1751059843375,-534.24,0.00019452,2]
[368208751,1751059843384,-552.30136842,0.00019452,2]
[368208753,1751059843394,-460.0,0.00019452,2]
[368208755,1751059843403,-721.77,0.00019452,2]
[368208757,1751059843412,-460.0,0.00019452,2]
[368208759,1751059843421,-538.57,0.00019452,2]
[368208761,1751059843430,-685.27,0.00019452,2]
[368208763,1751059843439,-460.0,0.00019452,2]
[368208765,1751059843448,-1146.55,0.00019452,2]
[368208766,1751059843457,-463.94,0.00019452,2]
[368208768,1751059843467,-1032.51,0.00019452,2]
[368208771,1751059843476,-460.0,0.00019452,2]
[368208772,1751059843486,-460.0,0.00019452,2]
[368208775,1751059843495,-460.0,0.00019452,2]
[368208776,1751059843504,-1740.47,0.00019452,2]
[368208779,1751059843514,-460.0,0.00019452,2]
[368208780,1751059843522,-460.0,0.00019452,2]
[368208782,1751059843532,-460.0,0.00019452,2]
[368208784,1751059843541,-460.0,0.00019452,2]
[368208786,1751059843550,-460.0,0.00019452,2]
[368208788,1751059843559,-2833.9,0.00019452,2]
[368208790,1751059843568,-2925.91,0.00019452,2]
[368208792,1751059843577,-460.0,0.00019452,2]
[368208794,1751059843587,-460.0,0.00019452,2]
[368208796,1751059843596,-460.0,0.00019452,2]
[368208798,1751059843605,-610.39,0.00019452,2]
[368208800,1751059843614,-3411.96,0.00019452,2]
[368208802,1751059843622,-460.0,0.00019452,2]
[368208804,1751059843631,-544.48814281,0.00019452,2]
[368208806,1751059843640,-460.0,0.00019452,2]
[368208808,1751059843649,-460.0,0.00019452,2]
[368208810,1751059843658,-460.0,0.00019452,2]
[368208812,1751059843667,-460.0,0.00019452,2]
[368208814,1751059843676,-460.0,0.00019452,2]
[368208816,1751059843685,-460.0,0.00019452,2]
[368208818,1751059843695,-575.73,0.00019452,2]
[368208820,1751059843705,-460.0,0.00019452,2]
[368208822,1751059843714,-5400.88,0.00019452,2]
[368208824,1751059843723,-219.57425609,0.00019452,2]
[368208826,1751059843733,-460.0,0.00019452,2]
[368208828,1751059843744,-460.0,0.00019452,2]
[368208830,1751059843753,-613.16,0.00019452,2]
[368208832,1751059843762,-1518.34,0.00019452,2]
[368208834,1751059843771,-460.0,0.00019452,2]
[368208836,1751059843780,-460.0,0.00019452,2]
[368208838,1751059843790,-460.0,0.00019452,2]
[368208839,1751059843799,-460.0,0.00019452,2]
[368208841,1751059843809,-460.0,0.00019452,2]
[368208843,1751059843818,-460.0,0.00019452,2]
[368208845,1751059843827,-460.0,0.00019452,2]
[368208847,1751059843836,-2112.7,0.00019452,2]
[368208849,1751059843845,-460.0,0.00019452,2]
[368208851,1751059843855,-460.0,0.00019452,2]
[368208853,1751059843864,-2017.59,0.00019452,2]
[368208855,1751059843874,-682.29,0.00019452,2]
[368208857,1751059843884,-559.54,0.00019452,2]
[368208859,1751059843894,-460.0,0.00019452,2]
[368208861,1751059843903,-4888.98,0.00019452,2]
[368208863,1751059843912,-460.0,0.00019452,2]
[368208865,1751059843921,-460.0,0.00019452,2]
[368208867,1751059843930,-1040.67,0.00019452,2]
[368208869,1751059843940,-162.90776044,0.00019452,2]
[368208871,1751059843949,-460.0,0.00019452,2]
[368208873,1751059843958,-460.0,0.00019452,2]
[368208875,1751059843967,-849.9,0.00019452,2]
[368208877,1751059843977,-460.0,0.00019452,2]
[368208879,1751059843987,-1397.72,0.00019452,2]
[368208881,1751059843996,-460.0,0.00019452,2]
[368208883,1751059844005,-671.09,0.00019452,2]
[368208885,1751059844015,-460.0,0.00019452,2]
[368208887,1751059844024,-460.0,0.00019452,2]
[368208889,1751059844033,-305.65780778,0.00019452,2]
[368208891,1751059844042,-749.3,0.00019452,2]
[368208893,1751059844051,-460.0,0.00019452,2]
[368208895,1751059844061,-460.0,0.00019452,2]
[368208897,1751059844071,-460.0,0.00019452,2]
[368208899,1751059844080,-748.21,0.00019452,2]
[368208901,1751059844089,-1458.43,0.00019452,2]
[368208903,1751059844098,-460.0,0.00019452,2]
[368208905,1751059844107,-460.0,0.00019452,2]
[368208907,1751059844117,-460.0,0.00019452,2]
[368208909,1751059844126,-2371.99,0.00019452,2]
[368208911,1751059844136,-460.0,0.00019452,2]
[368208913,1751059844145,-644.03,0.00019452,2]
[368208915,1751059844154,-569.25,0.00019452,2]
[368208917,1751059844163,-460.0,0.00019452,2]
[368208919,1751059844175,-460.0,0.00019452,2]
[368208921,1751059844184,-587.46,0.00019452,2]
[368208923,1751059844193,-703.34,0.00019452,2]
[368208925,1751059844202,-4481.33,0.00019452,2]
[368208927,1751059844213,-460.0,0.00019452,2]
[368208929,1751059844222,-1352.98,0.00019452,2]
[368208931,1751059844231,-460.0,0.00019452,2]
[368208933,1751059844241,-460.0,0.00019452,2]
[368208935,1751059844256,-460.0,0.00019452,2]
[368208937,1751059844278,-894.55,0.00019452,2]
[368208939,1751059844300,-460.0,0.00019452,2]
[368208941,1751059844322,-460.0,0.00019452,2]
[368208943,1751059844343,-1968.67,0.00019452,2]
[368208945,1751059844364,-460.0,0.00019452,2]
[368208947,1751059844384,-460.0,0.00019452,2]
[368208949,1751059844405,-460.0,0.00019452,2]
[368208951,1751059844427,-460.0,0.00019452,2]
[368208953,1751059844448,-460.0,0.00019452,2]
[368208955,1751059844469,-460.0,0.00019452,2]
[368208957,1751059844491,-460.0,0.00019452,2]
[368208959,1751059844511,-460.0,0.00019452,2]
[368208960,1751059844533,-5486.24,0.00019452,2]
[368208962,1751059844551,-460.0,0.00019452,2]
[368208964,1751059844560,-529.91,0.00019452,2]
[368208966,1751059844571,-460.0,0.00019452,2]
[368208969,1751059844580,-756.72,0.00019452,2]
[368208970,1751059844589,-460.0,0.00019452,2]
[368208972,1751059844599,-314.14561234,0.00019452,2]
[368208987,1751059844738,-460.0,0.00019452,2]
[368208989,1751059844752,-460.0,0.00019452,2]
[368208991,1751059844761,-460.0,0.00019452,2]
[368208993,1751059844771,-2987.28,0.00019452,2]
[368208995,1751059844780,-770.22,0.00019452,2]
[368208997,1751059844790,-460.0,0.00019452,2]
[368208999,1751059844799,-460.0,0.00019452,2]
[368209001,1751059844808,-460.0,0.00019452,2]
[368209003,1751059844818,-977.92,0.00019452,2]
[368209005,1751059844829,-571.45477149,0.00019452,2]
[368209007,1751059844838,-220.2005835,0.00019452,2]
[368209009,1751059844848,-3584.12,0.00019452,2]
[368209011,1751059844857,-460.0,0.00019452,2]
[368209013,1751059844867,-652.23,0.00019452,2]
[368209015,1751059844876,-412.59867766,0.00019452,2]
[368209017,1751059844886,-755.55,0.00019452,2]
[368209019,1751059844896,-460.31,0.00019452,2]
[368209021,1751059844906,-354.798298,0.00019479,2]
[368209023,1751059844915,-500.0,0.00019616,2]
[368209025,1751059844925,-500.0,0.00019616,2]
[368209027,1751059844934,-288.09348078,0.00019616,2]
[368209029,1751059844944,-500.0,0.00019711,2]
[368209031,1751059844953,-485.62165416,0.00019714,2]
[368209033,1751059844963,-500.0,0.00019721,2]
[368209035,1751059844973,-179.57827425,0.00019721,2]
[368209038,1751059844983,-460.0,0.00019726,2]
[368209040,1751059844992,-460.0,0.00019726,2]
[368209041,1751059845001,-460.0,0.00019726,2]
[368209043,1751059845011,-460.0,0.00019726,2]
[368209046,1751059845021,-460.0,0.00019726,2]
[368209048,1751059845030,-460.0,0.00019726,2]
[368209050,1751059845040,-460.0,0.00019726,2]
[368209051,1751059845049,-460.0,0.00019726,2]
[368209054,1751059845059,-460.0,0.00019726,2]
[368209055,1751059845068,-540.0,0.00019726,2]
[368209057,1751059845077,-460.0,0.00019726,2]
[368209059,1751059845086,-460.0,0.00019726,2]
[368209061,1751059845095,-460.0,0.00019726,2]
[368209063,1751059845104,-460.0,0.00019726,2]
[368209065,1751059845114,-460.0,0.00019726,2]
[368209067,1751059845124,-460.0,0.00019726,2]
[368209069,1751059845135,-460.0,0.00019726,2]
[368209071,1751059845144,-460.0,0.00019726,2]
[368209073,1751059845153,-460.0,0.00019726,2]
[368209075,1751059845162,-460.0,0.00019726,2]
[368209077,1751059845173,-584.04,0.00019726,2]
[368209079,1751059845183,-460.0,0.00019726,2]
[368209081,1751059845192,-460.0,0.00019726,2]
[368209083,1751059845202,-391.96594338,0.00019726,2]
[368209085,1751059845212,-460.0,0.00019726,2]
[368209087,1751059845221,-460.0,0.00019726,2]
[368209088,1751059845231,-460.0,0.00019726,2]
[368209090,1751059845241,-460.0,0.00019726,2]
[368209092,1751059845250,-460.0,0.00019726,2]
[368209094,1751059845260,-460.0,0.00019726,2]
[368209095,1751059845269,-460.0,0.00019726,2]
[368209096,1751059845278,-460.0,0.00019726,2]
[368209097,1751059845287,-460.0,0.00019726,2]
[368209098,1751059845296,-460.0,0.00019726,2]
[368209099,1751059845305,-460.0,0.00019726,2]
[368209100,1751059845314,-460.0,0.00019726,2]
[368209101,1751059845323,-460.0,0.00019726,2]
[368209102,1751059845333,-460.0,0.00019726,2]
[368209103,1751059845342,-460.0,0.00019726,2]
[368209104,1751059845351,-460.0,0.00019726,2]
[368209105,1751059845360,-807.05,0.00019726,2]
[368209106,1751059845372,-460.0,0.00019726,2]
[368209107,1751059845381,-460.0,0.00019726,2]
[368209108,1751059845391,-460.0,0.00019726,2]
[368209109,1751059845402,-460.0,0.00019726,2]
[368209110,1751059845411,-460.0,0.00019726,2]
[368209111,1751059845420,-460.0,0.00019726,2]
[368209112,1751059845429,-460.0,0.00019726,2]
[368209113,1751059845439,-460.0,0.00019726,2]
[368209114,1751059845448,-460.0,0.00019726,2]
[368209115,1751059845458,-460.0,0.00019726,2]
[368209116,1751059845467,-460.0,0.00019726,2]
[368209117,1751059845476,-460.0,0.00019726,2]
[368209118,1751059845485,-460.0,0.00019726,2]
[368209119,1751059845494,-602.22,0.00019726,2]
[368209120,1751059845503,-460.0,0.00019726,2]
[368209121,1751059845513,-460.0,0.00019726,2]
[368209122,1751059845523,-482.33,0.00019726,2]
[368209123,1751059845532,-460.0,0.00019726,2]
[368209124,1751059845542,-460.0,0.00019726,2]
[368209126,1751059845554,-460.0,0.00019726,2]
[368209128,1751059845564,-460.0,0.00019726,2]
[368209130,1751059845574,-460.0,0.00019726,2]
[368209132,1751059845583,-460.0,0.00019726,2]
[368209135,1751059845593,-460.0,0.00019726,2]
[368209137,1751059845602,-460.0,0.00019726,2]
[368209138,1751059845611,-460.0,0.00019726,2]
[368209140,1751059845621,-460.0,0.00019726,2]
[368209143,1751059845630,-460.0,0.00019726,2]
[368209146,1751059845639,-460.0,0.00019726,2]
[368209148,1751059845648,-480.43,0.00019726,2]
[368209151,1751059845658,-460.0,0.00019726,2]
[368209153,1751059845668,-460.0,0.00019726,2]
[368209155,1751059845677,-432.45813942,0.00019726,2]
[368209157,1751059845687,-460.0,0.00019726,2]
[368209159,1751059845696,-736.02,0.00019726,2]
[368209160,1751059845705,-500.0,0.00019726,2]
[368209161,1751059845717,-213.10496377,0.00019726,2]
[368209162,1751059845726,-535.79,0.00019726,2]
[368209164,1751059845736,-460.0,0.00019726,2]
[368209165,1751059845746,-460.0,0.00019726,2]
[368209166,1751059845755,-1843.63,0.00019726,2]
[368209167,1751059845765,-460.0,0.00019726,2]
[368209168,1751059845787,-554.34,0.00019726,2]
[368209170,1751059845808,-632.84,0.00019726,2]
[368209172,1751059845830,-534.24,0.00019726,2]
[368209173,1751059845852,-460.0,0.00019726,2]
[368209175,1751059845876,-460.0,0.00019726,2]
[368209177,1751059845898,-538.57,0.00019726,2]
[368209179,1751059845920,-721.77,0.00019726,2]
[368209181,1751059845946,-685.27,0.00019726,2]
[368209183,1751059845983,-460.0,0.00019726,2]
[368209185,1751059846015,-1146.55,0.00019726,2]
[368209187,1751059846041,-463.94,0.00019726,2]
[368209189,1751059846062,-1032.51,0.00019726,2]
[368209191,1751059846077,-460.0,0.00019726,2]
[368209193,1751059846087,-460.0,0.00019726,2]
[368209195,1751059846096,-1740.47,0.00019726,2]
[368209198,1751059846106,-460.0,0.00019726,2]
[368209201,1751059846115,-460.0,0.00019726,2]
[368209202,1751059846125,-460.0,0.00019726,2]
[368209203,1751059846135,-2833.9,0.00019726,2]
[368209204,1751059846144,-2925.91,0.00019726,2]
[368209205,1751059846158,-460.0,0.00019726,2]
[368209206,1751059846168,-610.39,0.00019726,2]
[368209207,1751059846182,-460.0,0.00019726,2]
[368209208,1751059846192,-3411.96,0.00019726,2]
[368209209,1751059846201,-460.0,0.00019726,2]
[368209210,1751059846211,-460.0,0.00019726,2]
[368209211,1751059846222,-460.0,0.00019726,2]
[368209212,1751059846232,-460.0,0.00019726,2]
[368209213,1751059846242,-460.0,0.00019726,2]
[368209214,1751059846252,-575.73,0.00019726,2]
[368209215,1751059846262,-5400.88,0.00019726,2]
[368209216,1751059846271,-460.0,0.00019726,2]
[368209217,1751059846280,-460.0,0.00019726,2]
[368209219,1751059846290,-613.16,0.00019726,2]
[368209221,1751059846299,-1518.34,0.00019726,2]
[368209223,1751059846309,-460.0,0.00019726,2]
[368209225,1751059846318,-460.0,0.00019726,2]
[368209227,1751059846328,-460.0,0.00019726,2]
[368209229,1751059846338,-460.0,0.00019726,2]
[368209231,1751059846347,-460.0,0.00019726,2]
[368209233,1751059846356,-460.0,0.00019726,2]
[368209234,1751059846365,-2112.7,0.00019726,2]
[368209236,1751059846375,-460.0,0.00019726,2]
[368209238,1751059846385,-2017.59,0.00019726,2]
[368209240,1751059846394,-682.29,0.00019726,2]
[368209242,1751059846403,-559.54,0.00019726,2]
[368209244,1751059846412,-460.0,0.00019726,2]
[368209246,1751059846422,-4888.98,0.00019726,2]
[368209248,1751059846432,-460.0,0.00019726,2]
[368209250,1751059846442,-460.0,0.00019726,2]
[368209252,1751059846452,-1040.67,0.00019726,2]
[368209254,1751059846462,-460.0,0.00019726,2]
[368209256,1751059846471,-460.0,0.00019726,2]
[368209258,1751059846481,-849.9,0.00019726,2]
[368209260,1751059846491,-1397.72,0.00019726,2]
[368209262,1751059846500,-547.99322723,0.00019726,2]
[368209264,1751059846510,-671.09,0.00019726,2]
[368209266,1751059846520,-460.0,0.00019726,2]
[368209268,1751059846530,-155.96679068,0.00019726,2]
[368209270,1751059846539,-749.3,0.00019726,2]
[368209272,1751059846549,-460.0,0.00019726,2]
[368209274,1751059846559,-460.0,0.00019726,2]
[368209276,1751059846568,-460.0,0.00019726,2]
[368209278,1751059846577,-748.21,0.00019726,2]
[368209280,1751059846586,-1458.43,0.00019726,2]
[368209281,1751059846595,-460.0,0.00019726,2]
[368209283,1751059846605,-460.0,0.00019726,2]
[368209284,1751059846614,-460.0,0.00019726,2]
[368209286,1751059846623,-2371.99,0.00019726,2]
[368209288,1751059846633,-460.0,0.00019726,2]
[368209290,1751059846643,-644.03,0.00019726,2]
[368209292,1751059846652,-569.25,0.00019726,2]
[368209294,1751059846661,-460.0,0.00019726,2]
[368209296,1751059846671,-460.0,0.00019726,2]
[368209297,1751059846680,-587.46,0.00019726,2]
[368209298,1751059846689,-703.34,0.00019726,2]
[368209299,1751059846698,-4481.33,0.00019726,2]
[368209300,1751059846707,-460.0,0.00019726,2]
[368209301,1751059846717,-1352.98,0.00019726,2]
[368209302,1751059846726,-460.0,0.00019726,2]
[368209303,1751059846736,-460.0,0.00019726,2]
[368209304,1751059846746,-894.55,0.00019726,2]
[368209305,1751059846755,-487.74873008,0.00019726,2]
[368209306,1751059846764,-460.0,0.00019726,2]
[368209307,1751059846774,-1968.67,0.00019726,2]
[368209308,1751059846784,-460.0,0.00019726,2]
[368209309,1751059846793,-460.0,0.00019726,2]
[368209310,1751059846803,-460.0,0.00019726,2]
[368209311,1751059846812,-460.0,0.00019726,2]
[368209312,1751059846833,-460.0,0.00019726,2]
[368209314,1751059846855,-460.0,0.00019726,2]
[368209316,1751059846877,-460.0,0.00019726,2]
[368209318,1751059846901,-5486.24,0.00019726,2]
[368209320,1751059846921,-276.18120611,0.00019726,2]
[368209322,1751059846942,-529.91,0.00019726,2]
[368209324,1751059846965,-460.0,0.00019726,2]
[368209325,1751059846988,-756.72,0.00019726,2]
[368209327,1751059847011,-470.23712706,0.00019726,2]
[368209329,1751059847032,-460.0,0.00019726,2]
[368209331,1751059847054,-460.0,0.00019726,2]
[368209333,1751059847075,-2987.28,0.00019726,2]
[368209335,1751059847086,-770.22,0.00019726,2]
[368209337,1751059847095,-460.0,0.00019726,2]
[368209339,1751059847105,-460.0,0.00019726,2]
[368209341,1751059847115,-977.92,0.00019726,2]
[368209343,1751059847125,-460.0,0.00019726,2]
[368209345,1751059847134,-3584.12,0.00019726,2]
[368209347,1751059847143,-460.0,0.00019726,2]
[368209349,1751059847152,-652.23,0.00019726,2]
[368209350,1751059847162,-755.55,0.00019726,2]
[368209351,1751059847171,-460.31,0.00019726,2]
[368209352,1751059847182,-1893.7249452,0.00019763,2]
[368209353,1751059847191,-500.0,0.00019794,2]
[368209354,1751059847201,-500.0,0.00019794,2]
[368209355,1751059847210,-500.0,0.00019798,2]
[368209356,1751059847219,-500.0,0.00019798,2]
[368209357,1751059847229,-6026.94369154,0.000199,2]
[368209358,1751059847239,-420.0,0.00019903,2]
[368209359,1751059847248,-1000.0,0.0001998,2]
[368209360,1751059847257,-460.0,0.0002,2]
[368209361,1751059847267,-460.0,0.0002,2]
[368209362,1751059847275,-460.0,0.0002,2]
[368209363,1751059847285,-460.0,0.0002,2]
[368209364,1751059847294,-460.0,0.0002,2]
[368209365,1751059847304,-460.0,0.0002,2]
[368209366,1751059847313,-390.62502656,0.0002,2]
[368209367,1751059847322,-460.0,0.0002,2]
[368209368,1751059847331,-460.0,0.0002,2]
[368209369,1751059847340,-460.0,0.0002,2]
[368209370,1751059847349,-460.0,0.0002,2]
[368209371,1751059847359,-460.0,0.0002,2]
[368209372,1751059847368,-460.0,0.0002,2]
[368209373,1751059847377,-460.0,0.0002,2]
[368209374,1751059847386,-460.0,0.0002,2]
[368209375,1751059847396,-584.04,0.0002,2]
[368209376,1751059847406,-460.0,0.0002,2]
[368209377,1751059847415,-460.0,0.0002,2]
[368209378,1751059847425,-523.93088361,0.0002,2]
[368209379,1751059847434,-460.0,0.0002,2]
[368209380,1751059847444,-460.0,0.0002,2]
[368209381,1751059847453,-460.0,0.0002,2]
[368209382,1751059847462,-460.0,0.0002,2]
[368209383,1751059847472,-460.0,0.0002,2]
[368209384,1751059847482,-460.0,0.0002,2]
[368209385,1751059847492,-460.0,0.0002,2]
[368209386,1751059847502,-460.0,0.0002,2]
[368209387,1751059847512,-460.0,0.0002,2]
[368209388,1751059847522,-460.0,0.0002,2]
[368209389,1751059847531,-460.0,0.0002,2]
[368209390,1751059847541,-460.0,0.0002,2]
[368209391,1751059847550,-460.0,0.0002,2]
[368209392,1751059847559,-460.0,0.0002,2]
[368209393,1751059847569,-460.0,0.0002,2]
[368209394,1751059847579,-807.05,0.0002,2]
[368209395,1751059847588,-460.0,0.0002,2]
[368209396,1751059847598,-460.0,0.0002,2]
[368209397,1751059847607,-601.8,0.0002,2]
[368209398,1751059847616,-460.0,0.0002,2]
[368209399,1751059847626,-460.0,0.0002,2]
[368209400,1751059847634,-460.0,0.0002,2]
[368209401,1751059847643,-460.0,0.0002,2]
[368209402,1751059847653,-460.0,0.0002,2]
[368209403,1751059847662,-460.0,0.0002,2]
[368209404,1751059847671,-460.0,0.0002,2]
[368209405,1751059847680,-460.0,0.0002,2]
[368209406,1751059847690,-460.0,0.0002,2]
[368209407,1751059847699,-482.33,0.0002,2]
[368209408,1751059847708,-460.0,0.0002,2]
[368209409,1751059847719,-460.0,0.0002,2]
[368209410,1751059847729,-460.0,0.0002,2]
[368209411,1751059847739,-460.0,0.0002,2]
[368209412,1751059847748,-460.0,0.0002,2]
[368209413,1751059847757,-460.0,0.0002,2]
[368209414,1751059847767,-460.0,0.0002,2]
[368209415,1751059847776,-460.0,0.0002,2]
[368209416,1751059847786,-478.46342209,0.0002,2]
[368209417,1751059847795,-590.56351709,0.0002,2]
[368209418,1751059847804,-480.43,0.0002,2]
[368209419,1751059847814,-247.2,0.0002,2]
[368209420,1751059847824,-460.0,0.0002,2]
[368209421,1751059847834,-460.0,0.0002,2]
[368209422,1751059847845,-736.02,0.0002,2]
[368209423,1751059847855,-535.79,0.0002,2]
[368209424,1751059847864,-460.0,0.0002,2]
[368209425,1751059847874,-460.0,0.0002,2]
[368209426,1751059847884,-1843.63,0.0002,2]
[368209427,1751059847894,-460.0,0.0002,2]
[368209428,1751059847904,-554.34,0.0002,2]
[368209429,1751059847913,-632.84,0.0002,2]
[368209430,1751059847923,-534.24,0.0002,2]
[368209431,1751059847932,-460.0,0.0002,2]
[368209432,1751059847943,-460.0,0.0002,2]
[368209433,1751059847952,-538.57,0.0002,2]
[368209434,1751059847964,-721.77,0.0002,2]
[368209435,1751059847973,-685.27,0.0002,2]
[368209436,1751059847982,-460.0,0.0002,2]
[368209437,1751059847991,-1146.55,0.0002,2]
[368209438,1751059848000,-463.94,0.0002,2]
[368209439,1751059848009,-1032.51,0.0002,2]
[368209440,1751059848019,-460.0,0.0002,2]
[368209441,1751059848028,-1740.47,0.0002,2]
[368209442,1751059848038,-460.0,0.0002,2]
[368209443,1751059848047,-460.0,0.0002,2]
[368209444,1751059848057,-158.2548994,0.0002,2]
[368209445,1751059848066,-2833.9,0.0002,2]
[368209446,1751059848075,-2925.91,0.0002,2]
[368209447,1751059848085,-460.0,0.0002,2]
[368209448,1751059848095,-610.39,0.0002,2]
[368209449,1751059848105,-460.0,0.0002,2]
[368209450,1751059848114,-3411.96,0.0002,2]
[368209451,1751059848123,-460.0,0.0002,2]
[368209452,1751059848132,-460.0,0.0002,2]
[368209453,1751059848141,-460.0,0.0002,2]
[368209454,1751059848150,-460.0,0.0002,2]
[368209455,1751059848160,-575.73,0.0002,2]
[368209456,1751059848169,-460.0,0.0002,2]
[368209457,1751059848183,-5400.88,0.0002,2]
[368209458,1751059848324,-460.0,0.0002,2]
[368209459,1751059848334,-460.0,0.0002,2]
[368209460,1751059848344,-613.16,0.0002,2]
[368209461,1751059848354,-1518.34,0.0002,2]
[368209462,1751059848363,-460.0,0.0002,2]
[368209463,1751059848372,-216.043074,0.0002,2]
[368209464,1751059848382,-460.0,0.0002,2]
[368209465,1751059848391,-460.0,0.0002,2]
[368209466,1751059848401,-2112.7,0.0002,2]
[368209467,1751059848410,-460.0,0.0002,2]
[368209468,1751059848419,-2017.59,0.0002,2]
[368209469,1751059848430,-682.29,0.0002,2]
[368209470,1751059848439,-559.54,0.0002,2]
[368209471,1751059848449,-460.0,0.0002,2]
[368209472,1751059848459,-4888.98,0.0002,2]
[368209473,1751059848469,-165.91582066,0.0002,2]
[368209474,1751059848479,-460.0,0.0002,2]
[368209475,1751059848488,-1040.67,0.0002,2]
[368209476,1751059848497,-460.0,0.0002,2]
[368209477,1751059848507,-460.0,0.0002,2]
[368209478,1751059848516,-849.9,0.0002,2]
[368209479,1751059848526,-1397.72,0.0002,2]
[368209480,1751059848536,-671.09,0.0002,2]
[368209481,1751059848546,-749.3,0.0002,2]
[368209482,1751059848555,-526.76941475,0.0002,2]
[368209483,1751059848565,-460.0,0.0002,2]
[368209484,1751059848574,-460.0,0.0002,2]
[368209485,1751059848583,-748.21,0.0002,2]
[368209486,1751059848592,-1458.43,0.0002,2]